bitfinex-derivatives/quotes_BTCF0:USTF0_20241023
["timestamp","ask_amount","ask_price","bid_price","bid_amount"]
[1729663029677,0.0596,67150.0,67149.0,0.10472672]
[1729663032673,0.1696,67150.0,67149.0,0.10472672]
[1729663033771,0.1696,67150.0,67149.0,0.060001]
[1729663042669,0.1696,67150.0,67149.0,0.0004]
[1729663043867,0.1696,67150.0,67149.0,0.06001416]
[1729663044977,0.1696,67150.0,67149.0,0.0004]
[1729663046380,0.5304,67150.0,67149.0,0.06000544]
[1729663048465,0.5304,67150.0,67149.0,0.0004]
[1729663048667,0.5304,67150.0,67149.0,0.04509683]
[1729663048973,0.5304,67150.0,67149.0,0.0004]
[1729663048974,0.57797662,67150.0,67149.0,0.0004]
[1729663049965,0.5779532,67150.0,67149.0,0.0004]
[1729663050364,0.5304,67150.0,67149.0,0.0004]
[1729663063484,0.57794556,67150.0,67149.0,0.0004]
[1729663064690,0.57794882,67150.0,67149.0,0.0004]
[1729663066190,0.67518882,67150.0,67149.0,0.0004]
[1729663067584,0.67518882,67150.0,67137.0,0.04711898]
[1729663067585,1.17234882,67150.0,67137.0,0.04711898]
[1729663067880,0.169611,67138.0,67137.0,0.0002]
[1729663068387,0.21685318,67138.0,67137.0,0.0002]
[1729663068687,0.169611,67138.0,67137.0,0.0002]
[1729663072690,0.19503458,67138.0,67137.0,0.0002]
[1729663074185,0.55583458,67138.0,67137.0,0.0002]
[1729663074385,0.66583458,67138.0,67137.0,0.0002]
[1729663074591,0.55583458,67138.0,67137.0,0.0002]
[1729663075486,0.66583458,67138.0,67137.0,0.0002]
[1729663075684,0.55583458,67138.0,67137.0,0.0002]
[1729663077597,0.66583458,67138.0,67137.0,0.0002]
[1729663077897,0.55583458,67138.0,67137.0,0.0002]
[1729663078798,0.19503458,67138.0,67137.0,0.0002]
[1729663079007,0.91663458,67138.0,67137.0,0.0002]
[1729663082000,0.91663458,67138.0,67132.0,0.0448599]
[1729663082001,1.47347458,67138.0,67132.0,0.0448599]
[1729663082208,0.279615,67133.0,67132.0,0.0004]
[1729663090497,1.001215,67133.0,67132.0,0.0004]
[1729663093797,0.059623,67125.0,67124.0,0.0448599]
[1729663093995,0.530423,67125.0,67124.0,0.0004]
[1729663096610,0.169623,67125.0,67124.0,0.0004]
[1729663096810,0.530423,67125.0,67124.0,0.0004]
[1729663097216,0.169623,67125.0,67124.0,0.0004]
[1729663097403,0.530423,67125.0,67124.0,0.0004]
[1729663098609,0.169623,67125.0,67124.0,0.0004]
[1729663098803,0.530423,67125.0,67124.0,0.0004]
[1729663099605,0.530423,67125.0,67124.0,0.0450599]
[1729663100408,0.55557769,67125.0,67124.0,0.0450599]
[1729663101206,0.55557769,67125.0,67124.0,0.0004]
[1729663103719,0.19477769,67125.0,67124.0,0.0004]
[1729663104017,0.55557769,67125.0,67124.0,0.0004]
[1729663104417,0.19477769,67125.0,67124.0,0.0004]
[1729663104715,0.55557769,67125.0,67124.0,0.0004]
[1729663108204,0.55557769,67125.0,67124.0,0.0450599]
[1729663108610,0.55557769,67125.0,67124.0,0.0004]
[1729663109417,0.55557769,67125.0,67124.0,0.04510209]
[1729663109608,0.55557769,67125.0,67124.0,0.0004]
[1729663111816,0.55557769,67125.0,67124.0,0.06000544]
[1729663112820,0.55557769,67125.0,67124.0,0.0004]
[1729663113319,0.55557769,67125.0,67124.0,0.06000544]
[1729663114522,0.55557769,67125.0,67124.0,0.0004]
[1729663116121,0.60190668,67125.0,67124.0,0.0004]
[1729663116915,0.60190863,67125.0,67124.0,0.0004]
[1729663120226,0.24109762,67125.0,67124.0,0.0004]
[1729663120417,0.60189762,67125.0,67124.0,0.0004]
[1729663120613,0.40711993,67125.0,67124.0,0.170023]
[1729663120826,0.3608,67125.0,67124.0,0.616943]
[1729663121023,0.3608,67125.0,67124.0,0.506943]
[1729663121216,0.3608,67125.0,67124.0,0.121023]
[1729663122623,0.3608,67125.0,67124.0,0.567943]
[1729663122923,0.3608,67125.0,67124.0,0.121023]
[1729663123517,0.11,67126.0,67125.0,0.059623]
[1729663123717,0.4708,67126.0,67125.0,0.11923375]
[1729663130524,0.530422,67126.0,67125.0,0.11923375]
[1729663131232,0.530422,67126.0,67125.0,0.059623]
[1729663134228,0.4708,67126.0,67124.0,0.0614]
[1729663134531,0.059623,67125.0,67124.0,0.0006]
[1729663136633,0.420423,67125.0,67124.0,0.0006]
[1729663139425,0.059623,67125.0,67124.0,0.0006]
[1729663139839,0.420423,67125.0,67124.0,0.0006]
[1729663140141,0.059623,67125.0,67124.0,0.0006]
[1729663140343,0.420423,67125.0,67124.0,0.0006]
[1729663141037,0.059623,67125.0,67124.0,0.0006]
[1729663144937,0.3608,67126.0,67125.0,0.059623]
[1729663145237,0.3608,67126.0,67125.0,0.169623]
[1729663151245,0.420422,67126.0,67125.0,0.169623]
[1729663151439,0.420422,67126.0,67125.0,0.059623]
[1729663155951,0.059622,67126.0,67125.0,0.059623]
[1729663173386,0.059622,67126.0,67125.0,0.10434473]
[1729663174292,0.059622,67126.0,67125.0,0.059623]
[1729663176486,0.059622,67126.0,67125.0,0.148844]
[1729663179284,0.059622,67126.0,67125.0,0.14887296]
[1729663184287,0.420419,67130.0,67129.0,0.059619]
[1729663184488,0.46707027,67130.0,67129.0,0.059619]
[1729663187393,0.420419,67130.0,67129.0,0.059619]
[1729663192185,0.059619,67130.0,67129.0,0.059619]
[1729663192395,0.420419,67130.0,67129.0,0.059619]
[1729663193096,0.059619,67130.0,67129.0,0.059619]
[1729663193306,0.420419,67130.0,67129.0,0.059619]
[1729663193598,0.059619,67130.0,67129.0,0.059619]
[1729663193899,0.420419,67130.0,67129.0,0.059619]
[1729663197610,0.059619,67130.0,67129.0,0.059619]
[1729663197897,0.420419,67130.0,67129.0,0.059619]
[1729663200306,0.3608,67130.0,67129.0,0.059619]
[1729663201605,0.420418,67130.0,67129.0,0.059619]
[1729663206717,0.46705657,67130.0,67129.0,0.059619]
[1729663207102,0.420418,67130.0,67129.0,0.059619]
[1729663207314,0.46705365,67130.0,67129.0,0.059619]
[1729663209207,0.40743565,67130.0,67129.0,0.059619]
[1729663209513,0.3608,67130.0,67129.0,0.169619]
[1729663214603,0.3608,67130.0,67129.0,0.25883103]
[1729663216500,0.059616,67133.0,67129.0,0.25883103]
[1729663216501,0.059616,67133.0,67132.0,0.059616]
[1729663216709,0.059616,67133.0,67132.0,0.169616]
[1729663219101,0.02501501,67135.0,67134.0,0.059615]
[1729663219305,0.059613,67136.0,67135.0,0.059614]
[1729663219501,0.059613,67136.0,67135.0,0.22922278]
[1729663221612,0.059613,67136.0,67135.0,0.169614]
[1729663221923,0.059613,67136.0,67135.0,0.059614]
[1729663222216,0.059613,67136.0,67135.0,0.169614]
[1729663223220,0.420413,67136.0,67135.0,0.169614]
[1729663229413,0.420413,67136.0,67135.0,0.22922278]
[1729663234616,0.420413,67136.0,67135.0,0.169614]
[1729663234823,0.3608,67136.0,67135.0,0.169614]
[1729663236622,0.420413,67136.0,67135.0,0.169614]
[1729663239125,0.3608,67136.0,67135.0,0.169614]
[1729663242538,0.08463452,67138.0,67135.0,0.169614]
[1729663242753,0.3608,67136.0,67135.0,0.169614]
[1729663243846,0.3608,67136.0,67135.0,0.059614]
[1729663247354,0.420413,67136.0,67135.0,0.059614]
[1729663252959,0.059613,67136.0,67135.0,0.059614]
[1729663253259,0.420413,67136.0,67135.0,0.059614]
[1729663254349,0.059613,67136.0,67135.0,0.059614]
[1729663254558,0.420413,67136.0,67135.0,0.059614]
[1729663258850,0.059613,67136.0,67135.0,0.059614]
[1729663259062,0.420413,67136.0,67135.0,0.13414363]
[1729663259558,0.420413,67136.0,67135.0,0.059614]
[1729663259559,0.46738204,67136.0,67135.0,0.059614]
[1729663260966,0.420413,67136.0,67135.0,0.059614]
[1729663263261,0.46737228,67136.0,67135.0,0.059614]
[1729663265065,0.46737165,67136.0,67135.0,0.059614]
[1729663265769,0.420413,67136.0,67135.0,0.059614]
[1729663266574,0.420413,67136.0,67132.0,0.02541406]
[1729663266575,0.059617,67133.0,67132.0,0.059616]
[1729663266766,0.059617,67133.0,67132.0,0.14878557]
[1729663266965,0.059617,67133.0,67132.0,0.16373799]
[1729663267279,0.059617,67133.0,67132.0,0.0002]
[1729663267280,0.169617,67133.0,67132.0,0.0002]
[1729663267575,0.169617,67133.0,67124.0,0.0006]
[1729663267766,0.5808,67125.0,67124.0,0.0002]
[1729663268073,0.4708,67125.0,67124.0,0.0002]
[1729663268281,1.02772,67125.0,67121.0,0.00223443]
[1729663268570,1.02772,67125.0,67118.0,0.0002]
[1729663268571,0.059628,67119.0,67118.0,0.0002]
[1729663268766,0.530428,67119.0,67118.0,0.0002]
[1729663268967,0.530428,67119.0,67118.0,0.0004]
[1729663269161,0.640428,67119.0,67118.0,0.0004]
[1729663269359,0.530428,67119.0,67118.0,0.0004]
[1729663274473,0.55571537,67119.0,67118.0,0.0004]
[1729663275573,0.55571537,67119.0,67106.0,0.059639]
[1729663275574,1.11267537,67119.0,67106.0,0.059639]
[1729663275878,0.530439,67107.0,67106.0,0.0002]
[1729663277272,0.640439,67107.0,67106.0,0.0002]
[1729663278870,0.530439,67107.0,67106.0,0.0002]
[1729663279269,1.087479,67107.0,67106.0,0.0002]
[1729663281475,1.1120145,67107.0,67106.0,0.0002]
[1729663281881,1.0020145,67107.0,67106.0,0.0002]
[1729663282183,0.5549745,67107.0,67106.0,0.0002]
[1729663282781,0.6518945,67107.0,67106.0,0.0002]
[1729663283783,1.2089345,67107.0,67106.0,0.0002]
[1729663290589,0.5549745,67107.0,67106.0,0.0002]
[1729663290793,0.6518945,67107.0,67106.0,0.0002]
[1729663291501,0.5549745,67107.0,67106.0,0.0002]
[1729663291986,0.6518945,67107.0,67106.0,0.0002]
[1729663292492,0.5549745,67107.0,67106.0,0.0002]
[1729663292694,0.3608,67107.0,67106.0,0.05975009]
[1729663295092,1.04867068,67107.0,67097.0,0.00436628]
[1729663295301,0.3608,67107.0,67106.0,0.169639]
[1729663295595,1.04874208,67107.0,67106.0,0.169639]
[1729663295993,1.04874208,67107.0,67096.0,0.35154196]
[1729663296290,0.68794208,67106.0,67105.0,0.05964]
[1729663297189,0.68794208,67106.0,67096.0,0.29335242]
[1729663297392,0.68794208,67105.0,67104.0,0.279641]
[1729663297793,0.68794208,67105.0,67104.0,0.726721]
[1729663298696,0.420433,67113.0,67112.0,0.059634]
[1729663298886,0.420433,67113.0,67112.0,0.169634]
[1729663300297,0.420433,67113.0,67112.0,0.059634]
[1729663300889,0.530433,67113.0,67112.0,0.059634]
[1729663302001,0.420433,67113.0,67112.0,0.059634]
[1729663303593,0.530433,67113.0,67112.0,0.059634]
[1729663303790,0.059634,67112.0,67111.0,0.0308]
[1729663303991,0.059634,67112.0,67111.0,0.031]
[1729663304591,0.059634,67112.0,67111.0,0.090635]
[1729663310197,0.059634,67112.0,67111.0,0.0002]
[1729663312697,0.059634,67112.0,67111.0,0.09607665]
[1729663314195,0.059634,67112.0,67111.0,0.0002]
[1729663314500,0.059634,67112.0,67111.0,0.09609209]
[1729663315805,0.059634,67112.0,67111.0,0.15572709]
[1729663316199,0.3608,67113.0,67112.0,0.059634]
[1729663316403,0.3608,67113.0,67112.0,0.15552609]
[1729663317503,0.1295,67120.0,67118.0,0.059628]
[1729663317504,0.092328,67120.0,67118.0,0.059628]
[1729663317697,0.05765041,67120.0,67118.0,0.13407637]
[1729663317898,0.059628,67119.0,67118.0,0.169628]
[1729663318206,0.059628,67119.0,67118.0,0.26535792]
[1729663318797,0.059628,67119.0,67118.0,0.15535792]
[1729663320203,0.059628,67119.0,67118.0,0.24484721]
[1729663320813,0.059628,67119.0,67118.0,0.22981884]
[1729663321208,0.0327,67120.0,67119.0,0.059628]
[1729663321428,0.0327,67120.0,67119.0,0.22981551]
[1729663321605,0.0327,67120.0,67119.0,0.15535501]
[1729663322106,0.3608,67121.0,67119.0,0.09572701]
[1729663322303,0.3608,67121.0,67120.0,0.15535401]
[1729663324809,0.3608,67121.0,67120.0,0.15542301]
[1729663326417,0.3608,67121.0,67119.0,0.0744919]
[1729663326418,0.4708,67121.0,67119.0,0.0744919]
[1729663326604,0.4708,67121.0,67116.0,0.05963]
[1729663326605,0.059628,67119.0,67118.0,0.0744919]
[1729663326804,0.279628,67119.0,67118.0,0.0744919]
[1729663327012,0.310028,67119.0,67118.0,0.0002]
[1729663328316,0.200028,67119.0,67118.0,0.0002]
[1729663329827,0.059634,67112.0,67111.0,0.0002]
[1729663330209,0.059634,67112.0,67111.0,0.0004]
[1729663332019,0.059634,67112.0,67111.0,0.060035]
[1729663333112,0.091934,67112.0,67111.0,0.060035]
[1729663335621,0.11650333,67112.0,67111.0,0.060035]
[1729663335820,0.11650333,67112.0,67111.0,0.23061187]
[1729663336318,0.11650333,67112.0,67111.0,0.23060464]
[1729663336518,0.11650333,67112.0,67111.0,0.1345269]
[1729663338114,0.47730333,67112.0,67111.0,0.1345269]
[1729663338316,0.452734,67112.0,67111.0,0.1345269]
[1729663338522,0.452734,67112.0,67111.0,0.23061027]
[1729663340823,0.452734,67112.0,67111.0,0.1345269]
[1729663341119,0.420434,67112.0,67111.0,0.1345269]
[1729663341315,0.420434,67112.0,67111.0,0.23075025]
[1729663341515,0.420434,67112.0,67111.0,0.1345269]
[1729663342418,0.420434,67112.0,67111.0,0.060035]
[1729663346716,0.3608,67112.0,67111.0,0.060035]
[1729663346917,0.08590461,67116.0,67111.0,0.060035]
[1729663346918,0.059631,67116.0,67115.0,0.059631]
[1729663347112,0.059631,67116.0,67115.0,0.169631]
[1729663347519,0.3608,67120.0,67115.0,0.11]
[1729663347731,0.059628,67119.0,67118.0,0.059628]
[1729663350838,0.059628,67119.0,67118.0,0.169628]
[1729663351634,0.059628,67119.0,67118.0,0.059628]
[1729663353236,0.420428,67119.0,67118.0,0.059628]
[1729663353933,0.420428,67119.0,67118.0,0.11921228]
[1729663356435,0.420428,67119.0,67118.0,0.059628]
[1729663360734,0.420428,67119.0,67111.0,0.0004]
[1729663360735,0.00223536,67126.0,67116.0,0.11]
[1729663360924,0.00223536,67126.0,67125.0,0.169623]
[1729663365939,0.00223536,67126.0,67125.0,0.22922206]
[1729663369644,0.00223536,67126.0,67125.0,0.169623]
[1729663375348,0.00223536,67126.0,67125.0,0.059623]
[1729663381859,0.05962,67128.0,67127.0,0.059621]
[1729663385858,0.11,67129.0,67128.0,0.05962]
[1729663386253,0.169619,67129.0,67128.0,0.05962]
[1729663386457,0.059619,67129.0,67128.0,0.05962]
[1729663388456,0.059619,67129.0,67128.0,0.1341119]
[1729663389278,0.420419,67129.0,67128.0,0.1341119]
[1729663389581,0.420419,67129.0,67128.0,0.15517365]
[1729663389781,0.530419,67129.0,67128.0,0.15517365]
[1729663392983,0.530419,67129.0,67118.0,0.45028929]
[1729663393185,0.059621,67127.0,67126.0,0.07456714]
[1729663393481,0.059622,67126.0,67125.0,0.07456714]
[1729663393783,0.059622,67126.0,67121.0,0.059626]
[1729663393784,0.059623,67125.0,67124.0,0.07456714]
[1729663393985,0.059623,67125.0,67124.0,0.07476714]
[1729663394288,0.059623,67125.0,67124.0,0.24439014]
[1729663394476,0.059623,67125.0,67124.0,0.169823]
[1729663394783,0.059623,67125.0,67124.0,0.24439014]
[1729663395482,0.059623,67125.0,67124.0,0.169823]
[1729663395887,0.059623,67125.0,67124.0,0.059823]
[1729663399387,0.02667273,67127.0,67126.0,0.059622]
[1729663399591,0.47156,67129.0,67128.0,0.05962]
[1729663399792,0.3608,67129.0,67128.0,0.05962]
[1729663400985,0.3608,67129.0,67128.0,0.21250929]
[1729663401187,0.3608,67129.0,67128.0,0.12302]
[1729663401890,0.3608,67129.0,67128.0,0.23654554]
[1729663402582,0.3608,67129.0,67128.0,0.12302]
[1729663402982,0.3608,67129.0,67128.0,0.18261822]
[1729663404496,0.3608,67129.0,67128.0,0.12302]
[1729663406503,0.3608,67129.0,67128.0,0.14962463]
[1729663408387,0.00223513,67133.0,67132.0,0.059616]
[1729663408595,0.06184252,67142.0,67132.0,0.530416]
[1729663408795,0.06184252,67142.0,67140.0,0.169609]
[1729663409605,0.00223452,67142.0,67140.0,0.169609]
[1729663409805,0.02950232,67142.0,67140.0,0.169609]
[1729663410105,0.00223452,67142.0,67140.0,0.169609]
[1729663410605,0.00223452,67142.0,67140.0,0.11]
[1729663410797,0.06184252,67142.0,67141.0,0.059608]
[1729663413592,0.06184252,67142.0,67141.0,0.11911065]
[1729663416600,0.06184252,67142.0,67141.0,0.059608]
[1729663421707,0.06184252,67142.0,67141.0,0.169608]
[1729663426107,0.06184252,67142.0,67141.0,0.21421852]
[1729663426307,0.06184252,67142.0,67141.0,0.169608]
[1729663429510,0.06184252,67142.0,67141.0,0.22911065]
[1729663430917,0.06184252,67142.0,67141.0,0.169608]
[1729663431721,0.00223452,67142.0,67141.0,0.169608]
[1729663441126,0.00223452,67142.0,67141.0,0.26432737]
[1729663442726,0.00223452,67142.0,67141.0,0.33885289]
[1729663442919,0.00223452,67142.0,67141.0,0.33885312]
[1729663444216,0.17184252,67142.0,67141.0,0.22885312]
[1729663446523,0.06184252,67142.0,67141.0,0.22885312]
[1729663446723,0.06184252,67142.0,67141.0,0.1543276]
[1729663447733,0.059608,67142.0,67141.0,0.1543276]
[1729663448120,0.059608,67142.0,67141.0,0.059608]
[1729663449938,0.169608,67142.0,67141.0,0.059608]
[1729663451338,0.059608,67142.0,67141.0,0.059608]
[1729663452838,0.05961,67140.0,67138.0,0.1411529]
[1729663453039,0.05961,67140.0,67139.0,0.05961]
[1729663454532,0.3926,67144.0,67139.0,0.05961]
[1729663454736,0.059607,67143.0,67142.0,0.169607]
[1729663456138,0.059607,67143.0,67142.0,0.26433798]
[1729663459528,0.059607,67143.0,67142.0,0.35373531]
[1729663459941,0.059607,67143.0,67142.0,0.26433798]
[1729663460342,0.059607,67143.0,67142.0,0.35373531]
[1729663461243,0.3608,67144.0,67143.0,0.059607]
[1729663461432,0.3608,67144.0,67143.0,0.15433798]
[1729663461938,0.3608,67144.0,67143.0,0.35373531]
[1729663462156,0.3608,67144.0,67143.0,0.40860093]
[1729663462440,0.3608,67144.0,67143.0,0.29860093]
[1729663462836,0.3608,67144.0,67143.0,0.39492093]
[1729663463245,0.3608,67144.0,67143.0,0.28215798]
[1729663463435,0.3608,67144.0,67143.0,0.37157195]
[1729663465534,0.3608,67144.0,67143.0,0.48157195]
[1729663466445,0.3608,67144.0,67143.0,0.39185129]
[1729663467936,0.3608,67144.0,67143.0,0.41850438]
[1729663471148,0.3608,67144.0,67143.0,0.32408009]
[1729663471354,0.3608,67149.0,67148.0,0.059602]
[1729663471533,0.3608,67149.0,67148.0,0.169602]
[1729663472046,0.420401,67149.0,67148.0,0.169602]
[1729663478443,0.3608,67149.0,67145.0,0.0744556]
[1729663478744,0.169604,67146.0,67145.0,0.0002]
[1729663479449,0.059604,67146.0,67145.0,0.0002]
[1729663480341,0.420404,67146.0,67145.0,0.0002]
[1729663481755,0.420404,67146.0,67145.0,0.059805]
[1729663487556,0.059604,67146.0,67145.0,0.059805]
[1729663487751,0.420404,67146.0,67145.0,0.059805]
[1729663493158,0.420404,67146.0,67145.0,0.15439412]
[1729663497566,0.059604,67146.0,67145.0,0.15439412]
[1729663500654,0.3608,67147.0,67146.0,0.059604]
[1729663500857,0.3608,67147.0,67146.0,0.26419312]
[1729663501265,0.3608,67147.0,67146.0,0.169604]
[1729663503467,0.420403,67147.0,67146.0,0.169604]
[1729663504364,0.420403,67147.0,67146.0,0.059604]
[1729663507673,0.059603,67147.0,67146.0,0.059604]
[1729663507971,0.420403,67147.0,67146.0,0.059604]
[1729663508468,0.420403,67147.0,67146.0,0.24347867]
[1729663510079,1.0276,67147.0,67144.0,0.08934672]
[1729663510271,1.0276,67147.0,67139.0,0.08934672]
[1729663510272,0.059608,67142.0,67139.0,0.08934672]
[1729663510468,0.3608,67145.0,67139.0,0.0002]
[1729663510674,0.3608,67145.0,67143.0,0.07452588]
[1729663511167,0.059607,67143.0,67142.0,0.07452588]
[1729663511371,0.059607,67143.0,67142.0,0.07472588]
[1729663511858,0.169607,67143.0,67142.0,0.07472588]
[1729663515069,0.3608,67145.0,67144.0,0.059606]
[1729663515273,0.3608,67145.0,67144.0,0.169606]
[1729663518780,0.3608,67147.0,67146.0,0.059604]
[1729663518970,0.3608,67147.0,67146.0,0.13408445]
[1729663520486,0.3608,67147.0,67146.0,0.059604]
[1729663523171,0.3608,67147.0,67144.0,0.11]
[1729663523366,0.3608,67147.0,67146.0,0.059604]
[1729663526371,0.0596,67150.0,67148.0,0.059601]
[1729663526577,0.3608,67149.0,67148.0,0.059601]
[1729663528680,0.3608,67149.0,67148.0,0.169601]
[1729663528873,1.83365,67152.0,67151.0,0.0596]
[1729663529075,1.83289,67152.0,67151.0,0.1696]
[1729663530877,1.83289,67152.0,67151.0,0.26326643]
[1729663533086,1.33190341,67152.0,67151.0,0.46261555]
[1729663533392,1.33190341,67152.0,67151.0,0.26326643]
[1729663533584,1.33190341,67152.0,67151.0,0.38447223]
[1729663534092,1.33190341,67152.0,67151.0,0.74192643]
[1729663535090,1.33190341,67152.0,67151.0,0.76815097]
[1729663535286,1.33190341,67152.0,67151.0,0.85741753]
[1729663536887,1.33190341,67152.0,67151.0,0.76842297]
[1729663537989,1.33190341,67152.0,67151.0,0.67448454]
[1729663539491,1.33190341,67152.0,67151.0,0.11772454]
[1729663539698,1.33190341,67152.0,67151.0,0.22772454]
[1729663544904,1.33190341,67152.0,67151.0,0.19582454]
[1729663546105,1.33190341,67152.0,67151.0,0.28942432]
[1729663546497,1.33190341,67152.0,67151.0,0.17942432]
[1729663546808,1.33190341,67152.0,67151.0,0.38554432]
[1729663548397,1.33190341,67152.0,67151.0,0.38546432]
[1729663549195,1.33190341,67152.0,67151.0,0.49699653]
[1729663550104,1.33190341,67152.0,67151.0,0.47472493]
[1729663550321,1.33190341,67152.0,67151.0,0.38546432]
[1729663552619,1.33190341,67152.0,67151.0,0.49716155]
[1729663553007,1.33190341,67152.0,67151.0,0.38546432]
[1729663553208,1.33190341,67152.0,67151.0,0.49717505]
[1729663555411,1.33190341,67152.0,67151.0,0.58477643]
[1729663555618,1.33190341,67152.0,67151.0,0.49546432]
[1729663555822,1.33190341,67152.0,67151.0,0.56179419]
[1729663556010,1.33190341,67152.0,67151.0,0.56232387]
[1729663557712,1.28717641,67152.0,67151.0,0.56232387]
[1729663557927,1.28717641,67152.0,67151.0,1.11908387]
[1729663558220,1.28717641,67152.0,67151.0,1.15098387]
[1729663559026,1.28717641,67152.0,67151.0,1.27471583]
[1729663559720,1.28717641,67152.0,67151.0,1.20991583]
[1729663559926,1.28717641,67152.0,67151.0,0.76315583]
[1729663561022,1.28717641,67152.0,67151.0,0.41753449]
[1729663562921,1.28717641,67152.0,67151.0,0.52753449]
[1729663563924,1.28717641,67152.0,67151.0,0.88833449]
[1729663564129,1.28717641,67152.0,67151.0,0.77808878]
[1729663564617,1.28717641,67152.0,67151.0,0.88808878]
[1729663565022,1.28717641,67152.0,67151.0,0.77808878]
[1729663565424,1.28717641,67152.0,67151.0,0.88808878]
[1729663566433,1.28717641,67152.0,67151.0,0.77808878]
[1729663566619,1.28717641,67152.0,67151.0,0.88808878]
[1729663567417,1.28717641,67152.0,67151.0,1.33484878]
[1729663567617,1.28717641,67152.0,67151.0,1.3395078]
[1729663568118,1.28717641,67152.0,67151.0,1.45115697]
[1729663568523,1.28717641,67152.0,67151.0,1.44649795]
[1729663568723,1.28717641,67152.0,67151.0,1.57538095]
[1729663568930,1.2349999,67152.0,67151.0,1.57538095]
[1729663571219,1.2349999,67152.0,67151.0,1.35538095]
[1729663571422,1.2349999,67152.0,67151.0,1.57538095]
[1729663572418,1.2349999,67152.0,67151.0,1.4460572]
[1729663572635,1.2349999,67152.0,67151.0,1.55025873]
[1729663572821,1.2349999,67152.0,67151.0,1.67855203]
[1729663573640,1.2349999,67152.0,67151.0,1.54860209]
[1729663574335,1.2349999,67152.0,67151.0,1.44440056]
[1729663576126,1.2349999,67152.0,67151.0,1.08360056]
[1729663576326,1.2349999,67152.0,67151.0,1.44440056]
[1729663577928,1.19027708,67152.0,67151.0,1.44440056]
[1729663578329,1.19027708,67152.0,67151.0,1.67635972]
[1729663579236,1.19027708,67152.0,67151.0,1.79453403]
[1729663579237,0.76498008,67152.0,67151.0,1.79453403]
[1729663580845,0.76498008,67152.0,67151.0,1.91368565]
[1729663581028,0.76498008,67152.0,67151.0,1.79453403]
[1729663581426,0.76498008,67152.0,67151.0,1.94010347]
[1729663581838,0.41498008,67152.0,67151.0,1.94010347]
[1729663582733,0.41498008,67152.0,67151.0,1.91360128]
[1729663582940,0.41498008,67152.0,67151.0,1.79453403]
[1729663583130,0.3404459,67152.0,67151.0,1.94008146]
[1729663583326,0.3404459,67152.0,67151.0,1.6272819]
[1729663583636,0.3404459,67152.0,67151.0,2.0739619]
[1729663583939,0.28827053,67152.0,67151.0,1.6272019]
[1729663584245,0.28827053,67152.0,67151.0,1.49324146]
[1729663584539,0.28827053,67152.0,67151.0,1.64215666]
[1729663584938,0.28827053,67152.0,67151.0,1.54619666]
[1729663585143,0.28827053,67152.0,67151.0,1.61035666]
[1729663585341,0.28827053,67152.0,67151.0,1.46144146]
[1729663585642,0.28827053,67152.0,67151.0,1.61035666]
[1729663586143,0.28827053,67152.0,67151.0,1.46144146]
[1729663586529,0.28827053,67152.0,67151.0,1.61035666]
[1729663587837,0.28827053,67152.0,67151.0,1.60580595]
[1729663588836,0.0318,67165.0,67151.0,1.60580595]
[1729663589043,0.0318,67165.0,67164.0,0.169588]
[1729663589241,0.0318,67165.0,67164.0,0.3703837]
[1729663590844,0.0318,67165.0,67164.0,0.3704047]
[1729663591243,0.0318,67165.0,67164.0,0.169588]
[1729663594050,0.0318,67165.0,67164.0,0.33556981]
[1729663594244,0.0318,67165.0,67164.0,0.24404247]
[1729663594439,0.0318,67165.0,67164.0,0.33554496]
[1729663594634,0.0318,67165.0,67164.0,0.169588]
[1729663594839,0.0318,67165.0,67164.0,0.33560075]
[1729663595034,0.0318,67165.0,67164.0,0.169588]
[1729663595252,0.0318,67165.0,67164.0,0.33561647]
[1729663595449,0.0318,67165.0,67164.0,0.33565918]
[1729663595645,0.0318,67165.0,67164.0,0.36293097]
[1729663595948,0.0318,67165.0,67164.0,0.27132601]
[1729663596152,0.0318,67165.0,67164.0,0.36287779]
[1729663596449,0.0318,67165.0,67164.0,0.36291815]
[1729663596848,0.0318,67165.0,67164.0,0.45887815]
[1729663597542,0.0318,67165.0,67164.0,0.38441193]
[1729663598143,0.0318,67165.0,67164.0,0.49355837]
[1729663602248,0.0318,67165.0,67164.0,0.40195783]
[1729663602452,0.0318,67165.0,67164.0,0.49351953]
[1729663606159,0.0318,67165.0,67164.0,0.38351953]
[1729663606454,0.0318,67165.0,67164.0,0.49351953]
[1729663606952,0.0318,67165.0,67164.0,0.29281979]
[1729663607149,0.0318,67165.0,67164.0,0.49335667]
[1729663609761,0.0318,67165.0,67164.0,0.38335667]
[1729663609964,0.0318,67165.0,67164.0,0.49335667]
[1729663613261,0.0318,67165.0,67164.0,0.29281979]
[1729663616367,0.0305,67166.0,67165.0,0.059587]
[1729663616563,0.0315,67169.0,67168.0,0.059584]
[1729663616762,0.0315,67169.0,67168.0,0.10429136]
[1729663619861,0.0315,67169.0,67168.0,0.059584]
[1729663620360,0.0315,67169.0,67168.0,0.10429136]
[1729663621257,0.0315,67169.0,67168.0,0.24054192]
[1729663621461,0.0315,67169.0,67168.0,0.15112928]
[1729663624164,0.0315,67169.0,67168.0,0.24055509]
[1729663624361,0.0315,67169.0,67168.0,0.15112928]
[1729663624966,0.0315,67169.0,67168.0,0.24045237]
[1729663625161,0.0315,67169.0,67168.0,0.15102706]
[1729663625678,0.0315,67169.0,67168.0,0.24045336]
[1729663626072,0.0315,67169.0,67168.0,0.15102706]
[1729663626263,0.0315,67169.0,67168.0,0.24045314]
[1729663626574,0.0315,67169.0,67168.0,0.15102706]
[1729663627366,0.0315,67169.0,67168.0,0.2404508]
[1729663627565,0.0315,67169.0,67168.0,0.15102706]
[1729663628276,0.0315,67169.0,67168.0,0.059584]
[1729663628970,0.53767254,67191.0,67168.0,0.5808]
[1729663628971,0.3608,67189.0,67168.0,0.5808]
[1729663629166,0.3608,67189.0,67178.0,0.169576]
[1729663629167,0.00223348,67179.0,67178.0,0.169576]
[1729663629772,0.55879348,67179.0,67178.0,0.059576]
[1729663630175,0.11223348,67179.0,67178.0,0.059576]
[1729663633081,0.00223348,67179.0,67178.0,0.169576]
[1729663643189,0.00223348,67179.0,67178.0,0.22918993]